[Event "22nd ETCC Women 2019"]
[Site "Batumi"]
[Date "2019.10.26"]
[Round "3.30"]
[White "Efroimski, Marsel"]
[Black "Khomeriki, Nino"]
[Result "0-1"]
[ECO "C55"]
[WhiteElo "2317"]
[BlackElo "2315"]
[Annotator "NA"]
[PlyCount "110"]
[EventDate "2019.10.24"]
[EventType "team-tourn"]
[EventCountry "GEO"]
[SourceTitle "playchess.com"]
[Source "ChessBase"]
[SourceQuality "1"]
[WhiteTeam "Israel"]
[BlackTeam "Georgia"]
[WhiteTeamCountry "ISR"]
[BlackTeamCountry "GEO"]
[TimeControl "40/5400+30:1800+30"]

1. e4 {[%emt 0:00:00]} e5 {[%emt 0:00:00]} 2. Nf3 {[%emt 0:00:00]} Nc6 {[%emt 0:00:00]} 3. Bc4 {[%emt 0:00:00]} Nf6 {[%emt 0:00:09]} 4. d3 {[%emt 0:00:00]} Be7 {[%emt 0:00:23]} 5. O-O {[%emt 0:00:12]} O-O {[%emt 0:00:18]} 6. Re1 {[%emt 0:04:26]} d6 {[%emt 0:00:46]} 7. a3 {[%emt 0:00:07]} Be6 {[%emt 0:07:52]} 8. Nc3 {[%emt 0:00:55]} a6 {[%emt 0:13:55]} 9. b4 {[%emt 0:08:41]} b5 {[%emt 0:06:27]} 10. Bd5 {[%emt 0:04:20]} Bxd5 {[%emt 0:10:11]} 11. Nxd5 {[%emt 0:03:39]} Nxd5 {[%emt 0:00:14]} 12. exd5 {[%emt 0:00:04]} Nb8 {[%emt 0:00:08]} 13. c4 {[%emt 0:18:12]} f5 {[%emt 0:06:56]} 14. Qb3 {[%emt 0:05:02]} Bf6 {[%emt 0:01:53]} 15. Bb2 {[%emt 0:01:21]} Nd7 {[%emt 0:05:26]} 16. c5 {[%emt 0:17:22]} Kh8 {[%emt 0:00:47]} 17. Rac1 {[%emt 0:00:48]} g5 {[%emt 0:02:03]} 18. Nd2 {[%emt 0:10:39]} g4 {[%emt 0:03:40]} 19. Nf1 {[%emt 0:02:21]} Bg5 {[%emt 0:03:07]} 20. Rc2 {[%emt 0:04:03]} h5 {[%emt 0:01:39]} 21. Bc1 {[%emt 0:02:40]} h4 {[%emt 0:08:36]} 22. cxd6 {[%emt 0:02:25]} cxd6 {[%emt 0:00:02]} 23. Rc6 {[%emt 0:00:46]} Be7 {[%emt 0:05:11]} 24. Bb2 {[%emt 0:06:25]} Nb8 {[%emt 0:02:29]} 25. Rc2 {[%emt 0:00:11]} Bg5 {[%emt 0:00:10]} 26. Qc3 {[%emt 0:00:44]} Ra7 {[%emt 0:00:26]} 27. Bc1 {[%emt 0:02:40]} Bf6 {[%emt 0:01:12]} 28. Qd2 {[%emt 0:02:28]} Rh7 {[%emt 0:01:23]} 29. Bb2 {[%emt 0:01:07]} Qd7 {[%emt 0:02:47]} 30. Qc3 {[%emt 0:02:40]} Qa7 {[%emt 0:04:44]} 31. Rec1 {[%emt 0:00:24]} Rg7 {[%emt 0:02:44]} 32. Ne3 {[%emt 0:00:30]} Bd8 {[%emt 0:04:37]} 33. Qc8 {[%emt 0:00:26]} Rgf7 {[%emt 0:03:54]} 34. Qe6 {[%emt 0:00:40]} Rf6 {[%emt 0:00:14]} 35. Qc8 {[%emt 0:00:27]} Bb6 {[%emt 0:00:36]} 36. Qc3 {[%emt 0:00:21]} g3 {[%emt 0:00:20]} 37. Nf1 {[%emt 0:00:46]} gxf2+ {[%emt 0:00:41]} 38. Kh1 {[%emt 0:00:04]} Qg7 {[%emt 0:00:15]} 39. d4 {[%emt 0:00:53]} Bxd4 {[%emt 0:00:40]} 40. Qh3 {[%emt 0:00:00]} Bxb2 {[%emt 0:00:00]} 41. Rxb2 {[%emt 0:01:41]} Qg4 {[%emt 0:05:40]} 42. Rxf2 {[%emt 0:03:13]} Qxh3 {[%emt 0:00:10]} 43. gxh3 {[%emt 0:00:03]} Nd7 {[%emt 0:02:08]} 44. Rc6 {[%emt 0:06:16]} e4 {[%emt 0:07:47]} 45. Rf4 {[%emt 0:03:16]} Ne5 {[%emt 0:00:07]} 46. Rxh4+ {[%emt 0:00:36]} Kg8 {[%emt 0:00:11]} 47. Rc2 {[%emt 0:08:36]} f4 {[%emt 0:02:40]} 48. Rg2+ {[%emt 0:01:07]} Rg6 {[%emt 0:00:15]} 49. Rxg6+ {[%emt 0:02:41]} Nxg6 {[%emt 0:00:05]} 50. Rg4 {[%emt 0:00:03]} Kh7 {[%emt 0:00:06]} 51. Nd2 {[%emt 0:02:41]} e3 {[%emt 0:04:56]} 52. Nf3 {[%emt 0:03:06]} Ne5 {[%emt 0:00:11]} 53. Rh4+ {[%emt 0:03:25]} Kg6 {[%emt 0:00:16]} 54. Nd4 {[%emt 0:00:17]} f3 {[%emt 0:00:44]} 55. Kg1 {[%emt 0:00:42]} e2 {[%emt 0:00:19]} 0-1

[Event "22nd ETCC Women 2019"]
[Site "Batumi"]
[Date "2019.10.26"]
[Round "3.31"]
[White "Khukhashvili, Sopiko"]
[Black "Klinova, Masha"]
[Result "0-1"]
[ECO "B07"]
[WhiteElo "2341"]
[BlackElo "2277"]
[Annotator "NA"]
[PlyCount "48"]
[EventDate "2019.10.24"]
[EventType "team-tourn"]
[EventCountry "GEO"]
[SourceTitle "playchess.com"]
[Source "ChessBase"]
[SourceQuality "1"]
[WhiteTeam "Georgia"]
[BlackTeam "Israel"]
[WhiteTeamCountry "GEO"]
[BlackTeamCountry "ISR"]
[TimeControl "40/5400+30:1800+30"]

1. e4 {[%emt 0:00:00]} d6 {[%emt 0:00:00]} 2. d4 {[%emt 0:00:00]} Nf6 {[%emt 0:00:00]} 3. Nc3 {[%emt 0:00:00]} g6 {[%emt 0:00:00]} 4. g3 {[%emt 0:00:47]} Bg7 {[%emt 0:00:29]} 5. Bg2 {[%emt 0:00:05]} O-O {[%emt 0:00:05]} 6. Nge2 {[%emt 0:00:23]} e5 {[%emt 0:00:35]} 7. h3 {[%emt 0:00:22]} Nc6 {[%emt 0:01:10]} 8. d5 {[%emt 0:01:52]} Ne7 {[%emt 0:07:21]} 9. g4 {[%emt 0:03:25]} c6 {[%emt 0:01:45]} 10. Bg5 {[%emt 0:10:55]} cxd5 {[%emt 0:10:58]} 11. exd5 {[%emt 0:00:18]} Nd7 {[%emt 0:13:01]} 12. Qd2 {[%emt 0:00:55]} a6 {[%emt 0:01:30]} 13. O-O-O {[%emt 0:06:52]} b5 {[%emt 0:02:36]} 14. Ng3 {[%emt 0:03:45]} Nb6 {[%emt 0:05:09]} 15. b3 {[%emt 0:08:28]} Bb7 {[%emt 0:07:38]} 16. a3 {[%emt 0:09:25]} Qc7 {[%emt 0:02:00]} 17. Bxe7 {[%emt 0:07:43]} Qxe7 {[%emt 0:00:11]} 18. Be4 {[%emt 0:00:19]} Rac8 {[%emt 0:06:35]} 19. Kb2 {[%emt 0:03:11]} Rc5 {[%emt 0:01:09]} 20. Qe3 {[%emt 0:01:46]} Rfc8 {[%emt 0:02:47]} 21. Kb1 {[%emt 0:07:48]} Qc7 {[%emt 0:07:42]} 22. Rd3 {[%emt 0:03:41]} a5 {[%emt 0:02:39]} 23. b4 {[%emt 0:04:11]} axb4 {[%emt 0:01:43]} 24. axb4 {[%emt 0:01:52]} Rxc3 {[%emt 0:01:10]} 0-1

[Event "22nd ETCC Women 2019"]
[Site "Batumi"]
[Date "2019.10.26"]
[Round "3.32"]
[White "Nesterovskaya, Anzhelika"]
[Black "Mikadze, Miranda"]
[Result "0-1"]
[ECO "B12"]
[WhiteElo "2124"]
[BlackElo "2279"]
[Annotator "NA"]
[PlyCount "163"]
[EventDate "2019.10.24"]
[EventType "team-tourn"]
[EventCountry "GEO"]
[SourceTitle "playchess.com"]
[Source "ChessBase"]
[SourceQuality "1"]
[WhiteTeam "Israel"]
[BlackTeam "Georgia"]
[WhiteTeamCountry "ISR"]
[BlackTeamCountry "GEO"]
[TimeControl "40/5400+30:1800+30"]

1. e4 {[%emt 0:00:00]} c6 {[%emt 0:00:00]} 2. d4 {[%emt 0:00:02]} d5 {[%emt 0:00:00]} 3. e5 {[%emt 0:00:21]} c5 {[%emt 0:00:03]} 4. dxc5 {[%emt 0:00:12]} Nc6 {[%emt 0:00:14]} 5. f4 {[%emt 0:00:21]} e6 {[%emt 0:01:40]} 6. Be3 {[%emt 0:00:25]} a5 {[%emt 0:21:07]} 7. Bb5 {[%emt 0:18:34]} Bd7 {[%emt 0:06:37]} 8. a4 {[%emt 0:17:04]} Nh6 {[%emt 0:09:18]} 9. c3 {[%emt 0:13:08]} Qc7 {[%emt 0:06:00]} 10. Nf3 {[%emt 0:01:50]} Nb8 {[%emt 0:01:50]} 11. Bxd7+ {[%emt 0:00:33]} Nxd7 {[%emt 0:00:10]} 12. b4 {[%emt 0:00:26]} axb4 {[%emt 0:01:45]} 13. cxb4 {[%emt 0:00:07]} b6 {[%emt 0:00:11]} 14. Nc3 {[%emt 0:09:51]} bxc5 {[%emt 0:00:29]} 15. Nb5 {[%emt 0:00:07]} Qd8 {[%emt 0:11:04]} 16. bxc5 {[%emt 0:01:55]} Nf5 {[%emt 0:01:50]} 17. Bf2 {[%emt 0:00:10]} Bxc5 {[%emt 0:02:00]} 18. Bxc5 {[%emt 0:12:18]} Nxc5 {[%emt 0:04:55]} 19. Rc1 {[%emt 0:05:34]} Qa5+ {[%emt 0:07:29]} 20. Ke2 {[%emt 0:00:20]} Nxa4 {[%emt 0:08:06]} 21. Nc7+ {[%emt 0:00:56]} Ke7 {[%emt 0:00:04]} 22. Qc2 {[%emt 0:05:17]} Rab8 {[%emt 0:03:06]} 23. Qd3 {[%emt 0:02:01]} Nc5 {[%emt 0:05:35]} 24. Nxd5+ {[%emt 0:00:13]} exd5 {[%emt 0:00:09]} 25. Qxf5 {[%emt 0:00:06]} Ne6 {[%emt 0:00:40]} 26. Rhd1 {[%emt 0:01:25]} Rb2+ {[%emt 0:01:31]} 27. Kf1 {[%emt 0:00:57]} Qb5+ {[%emt 0:01:46]} 28. Kg1 {[%emt 0:00:34]} Qe2 {[%emt 0:00:18]} 29. Qg4 {[%emt 0:00:27]} h5 {[%emt 0:00:21]} 30. Qh3 {[%emt 0:00:29]} Qe3+ {[%emt 0:00:30]} 31. Kh1 {[%emt 0:00:06]} Qxf4 {[%emt 0:00:07]} 32. Nd4 {[%emt 0:01:55]} Ra8 {[%emt 0:05:38]} 33. Nxe6 {[%emt 0:00:36]} Qxe5 {[%emt 0:00:56]} 34. Nc7 {[%emt 0:01:49]} Rab8 {[%emt 0:00:56]} 35. Qa3+ {[%emt 0:00:52]} Kf6 {[%emt 0:00:09]} 36. Nxd5+ {[%emt 0:00:32]} Kg6 {[%emt 0:00:06]} 37. Qd3+ {[%emt 0:00:19]} Kh6 {[%emt 0:00:20]} 38. Rc6+ {[%emt 0:01:26]} g6 {[%emt 0:00:34]} 39. Qe3+ {[%emt 0:00:11]} Qxe3 {[%emt 0:00:05]} 40. Nxe3 {[%emt 0:00:00]} Re8 {[%emt 0:00:00]} 41. Rc2 {[%emt 0:01:18]} Rb6 {[%emt 0:00:59]} 42. Nf1 {[%emt 0:00:15]} Rf6 {[%emt 0:00:17]} 43. Kg1 {[%emt 0:00:05]} Re4 {[%emt 0:00:21]} 44. Rf2 {[%emt 0:00:34]} Ref4 {[%emt 0:00:23]} 45. Rdd2 {[%emt 0:00:44]} Kg7 {[%emt 0:00:08]} 46. Rxf4 {[%emt 0:01:04]} Rxf4 {[%emt 0:00:03]} 47. Ne3 {[%emt 0:00:12]} Re4 {[%emt 0:00:46]} 48. Kf2 {[%emt 0:00:08]} Re7 {[%emt 0:00:14]} 49. Rd5 {[%emt 0:00:16]} Ra7 {[%emt 0:00:15]} 50. Kf3 {[%emt 0:00:08]} Rb7 {[%emt 0:00:30]} 51. Rc5 {[%emt 0:06:00]} Ra7 {[%emt 0:04:28]} 52. Nd5 {[%emt 0:03:17]} Ra3+ {[%emt 0:00:11]} 53. Rc3 {[%emt 0:00:04]} Ra5 {[%emt 0:00:10]} 54. Rd3 {[%emt 0:01:04]} Ra7 {[%emt 0:01:12]} 55. Rc3 {[%emt 0:03:36]} Ra5 {[%emt 0:00:08]} 56. Rd3 {[%emt 0:01:21]} Ra7 {[%emt 0:00:27]} 57. h3 {[%emt 0:01:40]} Ra1 {[%emt 0:01:26]} 58. Nc7 {[%emt 0:07:02]} Rf1+ {[%emt 0:05:21]} 59. Ke2 {[%emt 0:00:30]} Rf5 {[%emt 0:00:23]} 60. Rd5 {[%emt 0:02:46]} Rf4 {[%emt 0:00:12]} 61. Rd7 {[%emt 0:01:08]} Re4+ {[%emt 0:01:03]} 62. Kf3 {[%emt 0:00:13]} Re1 {[%emt 0:00:09]} 63. Nb5 {[%emt 0:01:34]} g5 {[%emt 0:08:41]} 64. Kf2 {[%emt 0:00:18]} Re6 {[%emt 0:00:23]} 65. Nd6 {[%emt 0:02:08]} Kg6 {[%emt 0:00:30]} 66. Nc8 {[%emt 0:02:17]} Re8 {[%emt 0:01:22]} 67. Rd6+ {[%emt 0:01:27]} Kg7 {[%emt 0:01:40]} 68. Rc6 {[%emt 0:00:42]} Re4 {[%emt 0:03:07]} 69. Nd6 {[%emt 0:01:23]} Rf4+ {[%emt 0:00:06]} 70. Ke3 {[%emt 0:00:52]} h4 {[%emt 0:01:00]} 71. Ne8+ {[%emt 0:01:08]} Kf8 {[%emt 0:00:14]} 72. Nf6 {[%emt 0:00:10]} Rf5 {[%emt 0:00:41]} 73. Ne4 {[%emt 0:00:17]} Ke7 {[%emt 0:02:54]} 74. Rc5 {[%emt 0:00:11]} Rxc5 {[%emt 0:00:11]} 75. Nxc5 {[%emt 0:00:04]} f5 {[%emt 0:00:06]} 76. Nd3 {[%emt 0:01:35]} Kf6 {[%emt 0:00:41]} 77. Kd4 {[%emt 0:00:53]} Ke6 {[%emt 0:00:13]} 78. Nf2 {[%emt 0:01:13]} Kf6 {[%emt 0:00:46]} 79. Kd5 {[%emt 0:01:04]} g4 {[%emt 0:00:04]} 80. Kd4 {[%emt 0:01:29]} Kg5 {[%emt 0:00:03]} 81. Ke5 {[%emt 0:02:35]} f4 {[%emt 0:01:12]} 82. Nxg4 {[%emt 0:00:10]} 0-1

[Event "22nd ETCC Women 2019"]
[Site "Batumi"]
[Date "2019.10.26"]
[Round "3.33"]
[White "Reizniece-Ozola, Dana"]
[Black "Atalik, Ekaterina"]
[Result "0-1"]
[ECO "A13"]
[WhiteElo "2297"]
[BlackElo "2464"]
[Annotator "ChessBase"]
[PlyCount "113"]
[EventDate "2019.10.24"]
[EventType "team-tourn"]
[EventCountry "GEO"]
[SourceTitle "playchess.com"]
[Source "ChessBase"]
[SourceQuality "1"]
[WhiteTeam "Latvia"]
[BlackTeam "Turkey"]
[WhiteTeamCountry "LAT"]
[BlackTeamCountry "TUR"]
[TimeControl "40/5400+30:1800+30"]

1. c4 {[%emt 0:00:00]} e6 {[%emt 0:00:00]} 2. Nf3 {[%emt 0:00:05]} d5 {[%emt 0:00:00]} 3. e3 {[%emt 0:00:34]} Nf6 {[%emt 0:00:21]} 4. Nc3 {[%emt 0:02:58]} b6 {[%emt 0:00:36]} 5. g3 {[%emt 0:02:07]} Bb7 {[%emt 0:02:03]} 6. Bg2 {[%emt 0:00:06]} dxc4 {[%emt 0:03:15]} 7. Qa4+ {[%emt 0:00:51]} Nbd7 {[%emt 0:05:18]} 8. Qxc4 {[%emt 0:00:55]} Nc5 {[%emt 0:10:44]} 9. d4 {[%emt 0:03:17]} Ba6 {[%emt 0:07:22]} 10. Nb5 {[%emt 0:00:15]} c6 {[%emt 0:01:46]} 11. a4 {[%emt 0:03:26]} cxb5 {[%emt 0:07:37]} 12. axb5 {[%emt 0:00:07]} Bb7 {[%emt 0:00:11]} 13. dxc5 {[%emt 0:01:02]} Bxc5 {[%emt 0:01:15]} 14. O-O {[%emt 0:03:32]} Bd5 {[%emt 0:01:08]} 15. Qh4 {[%emt 0:12:25]} O-O {[%emt 0:03:00]} 16. b4 {[%emt 0:08:02]} Be7 {[%emt 0:01:51]} 17. Bb2 {[%emt 0:02:44]} Qe8 {[%emt 0:13:05]} 18. Nd4 {[%emt 0:09:49]} Bxg2 {[%emt 0:02:26]} 19. Kxg2 {[%emt 0:00:05]} Nd5 {[%emt 0:00:57]} 20. Qg4 {[%emt 0:07:13]} Bf6 {[%emt 0:02:18]} 21. Rfc1 {[%emt 0:07:47]} Nxb4 {[%emt 0:16:34]} 22. Ba3 {[%emt 0:09:29]} a5 {[%emt 0:02:12]} 23. bxa6 {[%emt 0:02:10]} Rxa6 {[%emt 0:00:27]} 24. Bxb4 {[%emt 0:10:31]} Qa8+ {[%emt 0:00:06]} 25. Qf3 {[%emt 0:01:55]} Rxa1 {[%emt 0:00:28]} 26. Rxa1 {[%emt 0:00:47]} Qxa1 {[%emt 0:00:06]} 27. Bxf8 {[%emt 0:00:15]} Kxf8 {[%emt 0:02:08]} 28. Qc6 {[%emt 0:01:28]} g6 {[%emt 0:05:31]} 29. Qxb6 {[%emt 0:00:51]} Bxd4 {[%emt 0:00:12]} 30. exd4 {[%emt 0:02:47]} Qa8+ {[%emt 0:00:07]} 31. Kg1 {[%emt 0:00:40]} Qd5 {[%emt 0:01:31]} 32. Qa7 {[%emt 0:01:01]} g5 {[%emt 0:00:44]} 33. h3 {[%emt 0:00:53]} Kg7 {[%emt 0:00:17]} 34. Qe7 {[%emt 0:01:02]} Kg6 {[%emt 0:01:10]} 35. h4 {[%emt 0:01:06]} h6 {[%emt 0:02:30]} 36. hxg5 {[%emt 0:00:30]} hxg5 {[%emt 0:00:11]} 37. Qa7 {[%emt 0:00:37]} Qf3 {[%emt 0:00:45]} 38. Qc5 {[%emt 0:01:21]} Kh5 {[%emt 0:01:43]} 39. Qe5 {[%emt 0:01:10]} Kg4 {[%emt 0:01:42]} 40. Kf1 {[%emt 0:00:00]} Qh1+ {[%emt 0:00:00]} 41. Ke2 {[%emt 0:02:28]} Qd5 {[%emt 0:03:01]} 42. Qf6 {[%emt 0:11:48]} Qe4+ {[%emt 0:01:20]} 43. Kf1 {[%emt 0:00:08]} Qf5 {[%emt 0:05:24]} 44. Qh8 {[%emt 0:06:03]} f6 {[%emt 0:03:15]} 45. Qd8 {[%emt 0:04:00]} Kf3 {[%emt 0:05:52]} 46. Qa8+ {[%emt 0:00:11]} Qe4 {[%emt 0:00:49]} 47. Qa3+ {[%emt 0:00:21]} Kg4 {[%emt 0:00:07]} 48. Qc3 {[%emt 0:05:05]} Kh3 {[%emt 0:05:51]} 49. Qc8 {[%emt 0:01:11]} Qb1+ {[%emt 0:01:34]} 50. Ke2 {[%emt 0:00:11]} Qe4+ {[%emt 0:06:33]} 51. Kf1 {[%emt 0:00:02]} Qd3+ {[%emt 0:00:12]} 52. Ke1 {[%emt 0:00:20]} Qxd4 {[%emt 0:01:11]} 53. Qxe6+ {[%emt 0:00:15]} Kg2 {[%emt 0:00:49]} 54. Qf5 {[%emt 0:01:27]} Qa1+ {[%emt 0:00:46]} 55. Ke2 {[%emt 0:00:19]} Qf1+ {[%emt 0:00:18]} 56. Ke3 {[%emt 0:01:38]} Qe1+ {[%emt 0:00:11]} 57. Kd4 0-1

[Event "22nd ETCC Women 2019"]
[Site "Batumi"]
[Date "2019.10.26"]
[Round "3.34"]
[White "Yildiz Kadioglu, Betul Cemre"]
[Black "Rogule, Laura"]
[Result "1-0"]
[ECO "E09"]
[WhiteElo "2338"]
[BlackElo "2269"]
[Annotator "NA"]
[PlyCount "97"]
[EventDate "2019.10.24"]
[EventType "team-tourn"]
[EventCountry "GEO"]
[SourceTitle "playchess.com"]
[Source "ChessBase"]
[SourceQuality "1"]
[WhiteTeam "Turkey"]
[BlackTeam "Latvia"]
[WhiteTeamCountry "TUR"]
[BlackTeamCountry "LAT"]
[TimeControl "40/5400+30:1800+30"]

1. d4 {[%emt 0:00:00]} d5 {[%emt 0:00:00]} 2. c4 {[%emt 0:00:00]} e6 {[%emt 0:00:00]} 3. Nf3 {[%emt 0:00:00]} Nf6 {[%emt 0:00:16]} 4. g3 {[%emt 0:00:22]} Be7 {[%emt 0:10:47]} 5. Bg2 {[%emt 0:00:32]} O-O {[%emt 0:02:17]} 6. O-O {[%emt 0:00:06]} c6 {[%emt 0:07:41]} 7. Qc2 {[%emt 0:00:49]} Nbd7 {[%emt 0:05:00]} 8. Nbd2 {[%emt 0:00:07]} b6 {[%emt 0:02:35]} 9. e4 {[%emt 0:00:16]} dxe4 {[%emt 0:03:05]} 10. Nxe4 {[%emt 0:00:05]} Nxe4 {[%emt 0:00:52]} 11. Qxe4 {[%emt 0:00:03]} Bb7 {[%emt 0:00:10]} 12. Re1 {[%emt 0:16:25]} Re8 {[%emt 0:07:34]} 13. Ne5 {[%emt 0:20:13]} Rc8 {[%emt 0:19:23]} 14. Be3 {[%emt 0:17:12]} Rc7 {[%emt 0:03:56]} 15. Qc2 {[%emt 0:10:00]} Nxe5 {[%emt 0:15:56]} 16. dxe5 {[%emt 0:00:04]} Rd7 {[%emt 0:01:47]} 17. Rad1 {[%emt 0:01:47]} Rxd1 {[%emt 0:00:43]} 18. Rxd1 {[%emt 0:00:05]} Qc7 {[%emt 0:00:08]} 19. c5 {[%emt 0:05:48]} b5 {[%emt 0:03:30]} 20. Qc3 {[%emt 0:08:06]} Rd8 {[%emt 0:01:50]} 21. Rxd8+ {[%emt 0:04:21]} Qxd8 {[%emt 0:00:10]} 22. Qd4 {[%emt 0:01:50]} Qxd4 {[%emt 0:01:37]} 23. Bxd4 {[%emt 0:00:04]} a5 {[%emt 0:02:03]} 24. Kf1 {[%emt 0:01:17]} Kf8 {[%emt 0:01:46]} 25. Ke1 {[%emt 0:00:19]} Ke8 {[%emt 0:00:10]} 26. a3 {[%emt 0:04:46]} Kd7 {[%emt 0:05:00]} 27. b4 {[%emt 0:00:15]} axb4 {[%emt 0:00:37]} 28. axb4 {[%emt 0:00:03]} Bc8 {[%emt 0:01:18]} 29. Ke2 {[%emt 0:02:00]} Kc7 {[%emt 0:00:31]} 30. g4 {[%emt 0:03:43]} Bd7 {[%emt 0:01:27]} 31. Be4 {[%emt 0:01:49]} h6 {[%emt 0:01:05]} 32. Kf3 {[%emt 0:01:25]} Bg5 {[%emt 0:01:23]} 33. Be3 {[%emt 0:00:05]} Bxe3 {[%emt 0:00:25]} 34. Kxe3 {[%emt 0:00:33]} Kd8 {[%emt 0:00:18]} 35. h4 {[%emt 0:01:59]} Ke7 {[%emt 0:00:41]} 36. f4 {[%emt 0:00:37]} g6 {[%emt 0:01:00]} 37. Kf3 {[%emt 0:00:22]} Kf8 {[%emt 0:00:16]} 38. h5 {[%emt 0:00:25]} gxh5 {[%emt 0:00:45]} 39. g5 {[%emt 0:00:58]} hxg5 {[%emt 0:00:22]} 40. fxg5 {[%emt 0:00:00]} Kg7 {[%emt 0:00:00]} 41. Kg3 {[%emt 0:00:09]} Be8 {[%emt 0:05:29]} 42. Kh4 {[%emt 0:00:09]} Bd7 {[%emt 0:04:18]} 43. Kxh5 {[%emt 0:00:25]} Kf8 {[%emt 0:04:27]} 44. Kh6 {[%emt 0:00:48]} Be8 {[%emt 0:03:37]} 45. Kh7 {[%emt 0:07:18]} Bd7 {[%emt 0:01:04]} 46. Bf3 {[%emt 0:01:48]} Be8 {[%emt 0:01:39]} 47. Bh5 {[%emt 0:00:24]} Bd7 {[%emt 0:00:39]} 48. Bxf7 {[%emt 0:00:17]} Kxf7 {[%emt 0:00:31]} 49. g6+ {[%emt 0:00:05]} 1-0

[Event "22nd ETCC Women 2019"]
[Site "Batumi"]
[Date "2019.10.26"]
[Round "3.35"]
[White "Berzina, Ilze"]
[Black "Ozturk, Kubra"]
[Result "1-0"]
[ECO "C95"]
[WhiteElo "2216"]
[BlackElo "2317"]
[Annotator "NA"]
[PlyCount "147"]
[EventDate "2019.10.24"]
[EventType "team-tourn"]
[EventCountry "GEO"]
[SourceTitle "playchess.com"]
[Source "ChessBase"]
[SourceQuality "1"]
[WhiteTeam "Latvia"]
[BlackTeam "Turkey"]
[WhiteTeamCountry "LAT"]
[BlackTeamCountry "TUR"]
[TimeControl "40/5400+30:1800+30"]

1. e4 {[%emt 0:00:00]} e5 {[%emt 0:00:00]} 2. Nf3 {[%emt 0:00:00]} Nc6 {[%emt 0:00:00]} 3. Bb5 {[%emt 0:00:00]} a6 {[%emt 0:00:00]} 4. Ba4 {[%emt 0:00:00]} Nf6 {[%emt 0:00:00]} 5. O-O {[%emt 0:00:20]} Be7 {[%emt 0:00:05]} 6. Re1 {[%emt 0:00:22]} b5 {[%emt 0:00:04]} 7. Bb3 {[%emt 0:00:05]} d6 {[%emt 0:00:10]} 8. c3 {[%emt 0:00:21]} O-O {[%emt 0:00:26]} 9. h3 {[%emt 0:00:14]} Nb8 {[%emt 0:00:13]} 10. d4 {[%emt 0:00:22]} Nbd7 {[%emt 0:00:10]} 11. Nbd2 {[%emt 0:00:44]} Bb7 {[%emt 0:00:09]} 12. Bc2 {[%emt 0:00:27]} Re8 {[%emt 0:00:10]} 13. Nf1 {[%emt 0:00:25]} Bf8 {[%emt 0:00:15]} 14. Ng3 {[%emt 0:00:14]} g6 {[%emt 0:00:08]} 15. a4 {[%emt 0:01:02]} Nb6 {[%emt 0:08:53]} 16. axb5 {[%emt 0:30:06]} axb5 {[%emt 0:00:30]} 17. Rxa8 {[%emt 0:00:11]} Qxa8 {[%emt 0:00:46]} 18. Bg5 {[%emt 0:00:32]} Bg7 {[%emt 0:02:18]} 19. dxe5 {[%emt 0:04:24]} dxe5 {[%emt 0:00:16]} 20. Qc1 {[%emt 0:04:53]} Nc4 {[%emt 0:05:34]} 21. b3 {[%emt 0:06:40]} Nd6 {[%emt 0:04:23]} 22. Qe3 {[%emt 0:03:11]} Nd7 {[%emt 0:05:22]} 23. Bh6 {[%emt 0:05:52]} Bf6 {[%emt 0:14:43]} 24. Nd2 {[%emt 0:05:34]} Qa2 {[%emt 0:08:56]} 25. Bd1 {[%emt 0:02:55]} Nf8 {[%emt 0:03:55]} 26. b4 {[%emt 0:07:06]} Ne6 {[%emt 0:12:22]} 27. Bb3 {[%emt 0:01:40]} Qa8 {[%emt 0:01:48]} 28. Ngf1 {[%emt 0:09:30]} Bg7 {[%emt 0:04:30]} 29. Bxg7 {[%emt 0:03:13]} Kxg7 {[%emt 0:00:06]} 30. Nh2 {[%emt 0:00:32]} Qd8 {[%emt 0:10:06]} 31. Ng4 {[%emt 0:04:57]} Qg5 {[%emt 0:01:01]} 32. Qxg5 {[%emt 0:07:06]} Nxg5 {[%emt 0:00:01]} 33. f3 {[%emt 0:00:18]} h5 {[%emt 0:02:00]} 34. Nf2 {[%emt 0:00:36]} Rd8 {[%emt 0:07:02]} 35. Kf1 {[%emt 0:00:22]} h4 {[%emt 0:02:23]} 36. Ke2 {[%emt 0:00:21]} f5 {[%emt 0:01:18]} 37. Ke3 {[%emt 0:01:06]} Kf6 {[%emt 0:01:52]} 38. Ra1 {[%emt 0:02:03]} Rc8 {[%emt 0:01:09]} 39. Bd5 {[%emt 0:00:41]} c6 {[%emt 0:00:41]} 40. Bb3 {[%emt 0:00:00]} c5 {[%emt 0:00:00]} 41. bxc5 {[%emt 0:00:44]} Rxc5 {[%emt 0:03:32]} 42. Kd3 {[%emt 0:00:58]} Ne6 {[%emt 0:04:24]} 43. Bxe6 {[%emt 0:00:46]} Kxe6 {[%emt 0:00:02]} 44. Nb3 {[%emt 0:05:39]} Rc4 {[%emt 0:01:48]} 45. Nd2 {[%emt 0:00:27]} Rc6 {[%emt 0:02:12]} 46. Nb3 {[%emt 0:00:26]} Rc4 {[%emt 0:01:51]} 47. Nd2 {[%emt 0:00:22]} Rc7 {[%emt 0:07:22]} 48. Nb3 {[%emt 0:00:22]} Kf6 {[%emt 0:00:20]} 49. Ra5 {[%emt 0:03:47]} Kg5 {[%emt 0:01:55]} 50. Ra2 {[%emt 0:02:35]} Kf4 {[%emt 0:01:25]} 51. Nd2 {[%emt 0:07:06]} Nc4 {[%emt 0:05:47]} 52. exf5 {[%emt 0:04:34]} gxf5 {[%emt 0:01:52]} 53. Nxc4 {[%emt 0:00:10]} bxc4+ {[%emt 0:01:24]} 54. Ke2 {[%emt 0:00:37]} Kg3 {[%emt 0:03:00]} 55. Kf1 {[%emt 0:03:26]} Rd7 {[%emt 0:01:59]} 56. Kg1 {[%emt 0:03:06]} e4 {[%emt 0:01:39]} 57. fxe4 {[%emt 0:00:28]} fxe4 {[%emt 0:02:21]} 58. Re2 {[%emt 0:00:21]} Kf4 {[%emt 0:00:19]} 59. Ng4 {[%emt 0:00:45]} Rd3 {[%emt 0:00:48]} 60. Rf2+ {[%emt 0:00:08]} Kg3 {[%emt 0:01:12]} 61. Nh2 {[%emt 0:00:07]} Rd1+ {[%emt 0:00:53]} 62. Nf1+ {[%emt 0:00:06]} Rxf1+ {[%emt 0:00:04]} 63. Rxf1 {[%emt 0:03:16]} e3 {[%emt 0:00:12]} 64. Re1 {[%emt 0:01:02]} Kf4 {[%emt 0:00:50]} 65. Rf1+ {[%emt 0:00:07]} Kg3 {[%emt 0:00:04]} 66. Re1 {[%emt 0:01:34]} Kf4 {[%emt 0:00:23]} 67. Rb1 {[%emt 0:00:20]} Be4 {[%emt 0:00:23]} 68. Rb8 {[%emt 0:00:35]} Bf5 {[%emt 0:00:48]} 69. Kf1 {[%emt 0:00:16]} Bd3+ {[%emt 0:01:01]} 70. Ke1 {[%emt 0:00:07]} Be4 {[%emt 0:00:43]} 71. Rg8 {[%emt 0:00:21]} Bf5 {[%emt 0:00:20]} 72. Rg7 {[%emt 0:00:29]} Ke5 {[%emt 0:00:45]} 73. Ke2 {[%emt 0:00:13]} Kf4 {[%emt 0:00:05]} 74. Rf7 {[%emt 0:00:11]} 1-0